fUST/lending_fUST_20250115
["ID","MTS","AMOUNT","RATE_DAILY","PERIOD"]
[348935374,1736878246736,-597.24,0.00022876,3]
[348935376,1736878246745,-507.09,0.00022876,3]
[348935378,1736878246754,-9279.56,0.00022876,3]
[348935380,1736878246764,-1200.0,0.00022882,2]
[348935382,1736878246774,-150.0,0.00022884,2]
[348935384,1736878246785,-1292.558,0.00022884,2]
[348935386,1736878246794,-7438.69753278,0.00023,2]
[348935388,1736878246803,-151.0,0.00023,7]
[348935390,1736878246813,-151.0,0.00023,7]
[348935392,1736878246823,-151.0,0.00023,7]
[348935394,1736878246833,-151.0,0.00023,7]
[348935396,1736878246843,-7438.69753278,0.00023,3]
[348935398,1736878246853,-500.0,0.00023013,3]
[348935400,1736878246862,-500.0,0.00023013,3]
[348935402,1736878246872,-1974.85,0.00023013,2]
[348935404,1736878246881,-500.0,0.00023013,3]
[348935406,1736878246891,-500.0,0.00023013,3]
[348935408,1736878246901,-953.26,0.00023013,3]
[348935410,1736878246911,-500.0,0.00023013,3]
[348935412,1736878246920,-500.0,0.00023013,3]
[348935414,1736878246930,-802.54,0.00023013,3]
[348935416,1736878246940,-500.0,0.00023013,3]
[348935418,1736878246950,-2918.15,0.00023013,3]
[348935420,1736878246960,-151.0,0.00023013,7]
[348935422,1736878246969,-471.2,0.00023013,3]
[348935424,1736878246978,-1781.02,0.00023013,3]
[348935426,1736878246988,-551.96,0.00023013,3]
[348935428,1736878246997,-611.14,0.00023013,3]
[348935430,1736878247007,-500.0,0.00023013,3]
[348935432,1736878247016,-500.0,0.00023013,3]
[348935434,1736878247026,-597.24,0.00023013,3]
[348935436,1736878247036,-507.09,0.00023013,3]
[348935438,1736878247045,-9279.56,0.00023013,3]
[348935440,1736878247055,-503.95958244,0.0002311,2]
[348935442,1736878247065,-153.0,0.00023132,2]
[348935444,1736878247074,-153.0,0.00023132,2]
[348935446,1736878247084,-153.0,0.00023132,2]
[348935448,1736878247094,-500.0,0.0002315,3]
[348935450,1736878247103,-224.55,0.0002315,3]
[348935452,1736878247113,-1974.85,0.0002315,2]
[348935454,1736878247122,-500.0,0.0002315,3]
[348935456,1736878247133,-500.0,0.0002315,3]
[348935458,1736878247143,-953.26,0.0002315,3]
[348935460,1736878247152,-500.0,0.0002315,3]
[348935462,1736878247162,-500.0,0.0002315,3]
[348935465,1736878247172,-802.54,0.0002315,3]
[348935467,1736878247181,-540.24,0.0002315,3]
[348935469,1736878247191,-2918.15,0.0002315,3]
[348935471,1736878247202,-1781.02,0.0002315,3]
[348935473,1736878247212,-551.96,0.0002315,3]
[348935475,1736878247222,-611.14,0.0002315,3]
[348935477,1736878247234,-500.0,0.0002315,3]
[348935479,1736878247244,-500.0,0.0002315,3]
[348935481,1736878247253,-597.24,0.0002315,3]
[348935483,1736878247263,-507.09,0.0002315,3]
[348935485,1736878247272,-9279.56,0.0002315,3]
[348935487,1736878247282,-3828.10390266,0.000232,2]
[348935489,1736878247292,-3828.10390264,0.000232,2]
[348935491,1736878247302,-3828.10390264,0.000232,2]
[348935493,1736878247311,-3828.10390264,0.000232,2]
[348935495,1736878247321,-500.0,0.00023287,3]
[348935497,1736878247330,-1974.85,0.00023287,2]
[348935499,1736878247339,-500.0,0.00023287,3]
[348935501,1736878247349,-500.0,0.00023287,3]
[348935503,1736878247359,-953.26,0.00023287,3]
[348935505,1736878247369,-621.65849037,0.00023287,3]
[348935507,1736878247379,-500.0,0.00023287,3]
[348935510,1736878247388,-802.54,0.00023287,3]
[348935512,1736878247398,-2918.15,0.00023287,3]
[348935514,1736878247408,-1781.02,0.00023287,3]
[348935516,1736878247418,-551.96,0.00023287,3]
[348935518,1736878247427,-611.14,0.00023287,3]
[348935520,1736878247437,-500.0,0.00023287,3]
[348935522,1736878247446,-500.0,0.00023287,3]
[348935524,1736878247456,-597.24,0.00023287,3]
[348935526,1736878247466,-507.09,0.00023287,3]
[348935528,1736878247475,-9279.56,0.00023287,3]
[348935530,1736878247485,-2977.0,0.00023334,7]
[348935532,1736878247494,-500.0,0.00023424,3]
[348935534,1736878247503,-151.0,0.00023424,7]
[348935536,1736878247513,-1974.85,0.00023424,2]
[348935537,1736878247522,-500.0,0.00023424,3]
[348935538,1736878247534,-500.0,0.00023424,3]
[348935539,1736878247546,-953.26,0.00023424,3]
[348935540,1736878247556,-500.0,0.00023424,3]
[348935541,1736878247566,-802.54,0.00023424,3]
[348935542,1736878247575,-2918.15,0.00023424,3]
[348935543,1736878247584,-1781.02,0.00023424,3]
[348935544,1736878247594,-551.96,0.00023424,3]
[348935545,1736878247604,-611.14,0.00023424,3]
[348935546,1736878247613,-500.0,0.00023424,3]
[348935547,1736878247626,-500.0,0.00023424,3]
[348935548,1736878247638,-597.24,0.00023424,3]
[348935549,1736878247648,-507.09,0.00023424,3]
[348935550,1736878247657,-9279.56,0.00023424,3]
[348935551,1736878247667,-22530.47014231,0.00023428,2]
[348935552,1736878247676,-510.3801897,0.00023452,2]
[348935553,1736878247686,-153.0,0.00023517,2]
[348935555,1736878247697,-153.0,0.00023517,2]
[348935557,1736878247706,-153.0,0.00023517,2]
[348935559,1736878247716,-153.0,0.00023517,2]
[348935561,1736878247726,-153.0,0.00023517,2]
[348935563,1736878247735,-153.0,0.00023517,2]
[348935565,1736878247745,-153.0,0.00023517,2]
[348935567,1736878247754,-153.0,0.00023517,2]
[348935569,1736878247764,-153.0,0.00023517,2]
[348935571,1736878247773,-1500.0,0.00023522,2]
[348935572,1736878247783,-1212.25288264,0.00023522,2]
[348935575,1736878247793,-162.0,0.00023545,2]
[348935577,1736878247802,-162.0,0.00023545,2]
[348935579,1736878247812,-162.0,0.00023545,2]
[348935581,1736878247821,-162.0,0.00023545,2]
[348935583,1736878247831,-162.0,0.00023545,2]
[348935585,1736878247840,-162.0,0.00023545,2]
[348935587,1736878247852,-162.0,0.00023545,2]
[348935589,1736878247861,-162.0,0.00023545,2]
[348935591,1736878247871,-162.0,0.00023545,2]
[348935593,1736878247883,-168.67,0.00023545,2]
[348935595,1736878247892,-151.0,0.00023561,7]
[348935597,1736878247901,-151.0,0.00023561,7]
[348935599,1736878247911,-500.0,0.00023561,3]
[348935601,1736878247921,-1974.85,0.00023561,2]
[348935603,1736878247930,-500.0,0.00023561,3]
[348935605,1736878247940,-500.0,0.00023561,3]
[348935607,1736878247950,-953.26,0.00023561,3]
[348935609,1736878247959,-500.0,0.00023561,3]
[348935611,1736878247969,-802.54,0.00023561,3]
[348935613,1736878247979,-2918.15,0.00023561,3]
[348935615,1736878247989,-151.0,0.00023561,7]
[348935617,1736878247999,-1781.02,0.00023561,3]
[348935619,1736878248009,-551.96,0.00023561,3]
[348935622,1736878248019,-611.14,0.00023561,3]
[348935624,1736878248029,-500.0,0.00023561,3]
[348935626,1736878248038,-500.0,0.00023561,3]
[348935628,1736878248047,-597.24,0.00023561,3]
[348935630,1736878248057,-507.09,0.00023561,3]
[348935632,1736878248067,-9279.56,0.00023561,3]
[348935634,1736878248077,-407.01379295,0.00023592,2]
[348935636,1736878248086,-407.01379295,0.00023592,2]
[348935638,1736878248096,-407.01379295,0.00023592,2]
[348935640,1736878248106,-407.01379295,0.00023592,2]
[348935642,1736878248116,-407.01379295,0.00023592,2]
[348935644,1736878248125,-407.01379295,0.00023592,2]
[348935646,1736878248135,-407.01379295,0.00023592,2]
[348935648,1736878248145,-407.01379295,0.00023592,2]
[348935650,1736878248154,-407.01379295,0.00023592,2]
[348935652,1736878248163,-407.01379295,0.00023592,2]
[348935654,1736878248173,-407.01379295,0.00023592,2]
[348935656,1736878248182,-407.01379295,0.00023592,2]
[348935658,1736878248192,-407.01379295,0.00023592,2]
[348935660,1736878248201,-407.01379295,0.00023592,2]
[348935662,1736878248212,-407.01379295,0.00023592,2]
[348935664,1736878248226,-407.01379295,0.00023592,2]
[348935665,1736878248242,-407.01379295,0.00023592,2]
[348935668,1736878248252,-407.01379295,0.00023592,2]
[348935670,1736878248262,-407.01379295,0.00023592,2]
[348935672,1736878248271,-407.01,0.00023592,2]
[348935674,1736878248281,-610.52068943,0.00023592,2]
[348935676,1736878248291,-610.52068943,0.00023592,2]
[348935678,1736878248300,-610.52068943,0.00023592,2]
[348935680,1736878248310,-610.52068943,0.00023592,2]
[348935682,1736878248319,-610.52068943,0.00023592,2]
[348935683,1736878248329,-610.52068943,0.00023592,2]
[348935686,1736878248338,-610.52068943,0.00023592,2]
[348935688,1736878248348,-610.52068943,0.00023592,2]
[348935690,1736878248358,-610.52068943,0.00023592,2]
[348935692,1736878248367,-610.52068943,0.00023592,2]
[348935693,1736878248378,-610.52068943,0.00023592,2]
[348935694,1736878248389,-610.52068943,0.00023592,2]
[348935695,1736878248399,-610.52068943,0.00023592,2]
[348935696,1736878248409,-610.52068943,0.00023592,2]
[348935697,1736878248419,-610.52068943,0.00023592,2]
[348935698,1736878248429,-610.52068943,0.00023592,2]
[348935699,1736878248439,-610.52068943,0.00023592,2]
[348935700,1736878248448,-610.52068943,0.00023592,2]
[348935701,1736878248458,-610.52068943,0.00023592,2]
[348935702,1736878248468,-610.52,0.00023592,2]
[348935703,1736878248477,-464.0,0.000236,11]
[348935704,1736878248488,-2000.0,0.000236,2]
[348935705,1736878248498,-2000.0,0.000236,2]
[348935706,1736878248508,-14453.73,0.000236,2]
[348935707,1736878248518,-2563.5,0.000236,14]
[348935708,1736878248529,-7221.69,0.000236,14]
[348935709,1736878248539,-620.0,0.000236,2]
[348935710,1736878248549,-500.0,0.00023673,2]
[348935711,1736878248559,-151.0,0.00023689,7]
[348935712,1736878248569,-151.0,0.00023689,7]
[348935713,1736878248579,-151.0,0.00023689,7]
[348935714,1736878248588,-151.0,0.00023689,7]
[348935715,1736878248599,-151.0,0.00023689,7]
[348935716,1736878248609,-151.0,0.00023689,7]
[348935717,1736878248619,-151.0,0.00023689,7]
[348935718,1736878248630,-151.0,0.00023689,7]
[348935719,1736878248641,-150.2,0.0002369,2]
[348935720,1736878248651,-150.2,0.0002369,14]
[348935721,1736878248661,-199.55,0.0002369,14]
[348935722,1736878248671,-151.0,0.00023692,7]
[348935723,1736878248681,-151.0,0.00023692,7]
[348935724,1736878248691,-151.0,0.00023692,7]
[348935725,1736878248701,-151.0,0.00023692,7]
[348935726,1736878248711,-151.0,0.00023692,7]
[348935727,1736878248721,-151.0,0.00023692,7]
[348935728,1736878248731,-294.4749,0.00023692,7]
[348935729,1736878248741,-161692.78669421,0.00023692,61]
[348935730,1736878248843,-1246.03401535,0.00023692,61]
[348935731,1736878248860,-500.0,0.00021917,3]
[348935732,1736878248870,-8499.1046541,0.00023692,61]
[348935733,1736878248882,-1411.2297382,0.00023692,61]
[348936312,1736879364134,-648.3643599,0.0001584,2]
[348936313,1736879364155,-281.13167656,0.00016,2]
[348936314,1736879364174,-915.71188452,0.000176,2]
[348936315,1736879369164,-737.20439226,0.000176,2]
[348936325,1736879401550,277.221051,0.00013973,2]
[348936520,1736879434957,-583.17665844,0.00018069,2]
[348936521,1736879434970,-1476.39999999,0.00018069,2]
[348936522,1736879434982,-2940.42334157,0.00018069,2]
[348936523,1736879434991,-250.0,0.00018676,2]
[348936524,1736879435000,-300.0,0.00018996,2]
[348936525,1736879435010,-9032.0,0.00018996,2]
[348936526,1736879435020,-6564.1747504,0.00019,2]
[348936527,1736879435029,-500.0,0.00019068,2]
[348936528,1736879435038,-164.193277,0.00019178,2]
[348936529,1736879435047,-5725.5417429,0.00019185,2]
[348936531,1736879435057,-500.0,0.00019771,2]
[348936532,1736879435067,-160.0,0.0002,2]
[348936534,1736879435076,-370.117,0.00020164,2]
[348936537,1736879435086,-192.475,0.00020164,2]
[348936539,1736879435096,-19113.75268405,0.00020366,2]
[348936541,1736879435112,-3766.07,0.00020366,2]
[348936544,1736879435123,-1868.9,0.00020366,2]
[348936547,1736879435135,-151.27731595,0.00020366,2]
[348936550,1736879435144,-348.72268405,0.00020408,2]
[348936684,1736879443785,-4795.88113935,0.00020204,2]
[348936687,1736879443806,-4496.92345712,0.00020308,2]
[348936690,1736879443817,-188.00542502,0.00020408,2]
[348936693,1736879443827,-277.221051,0.00020447,2]
[348936696,1736879443836,-547.739832,0.00020508,2]
[348936699,1736879443846,-420.0,0.00020706,2]
[348936703,1736879443856,-536.72810904,0.00020864,2]
[348936706,1736879443866,-263.68434033,0.00021,2]
[348936709,1736879443875,-4796.27840998,0.00021,2]
[348936712,1736879443885,-574.45622316,0.0002126,2]
[348936715,1736879443895,-536.72810904,0.00021319,2]
[348936718,1736879443905,-6916.770646,0.000215,2]
[348936721,1736879443915,-3061.66132605,0.00021592,2]
[348936724,1736879443925,-536.72810904,0.00021775,2]
[348936727,1736879443935,-352.9020598,0.00021781,2]
[348936730,1736879443944,-153.18,0.00021816,2]
[348936733,1736879443954,-174.11313372,0.00021817,2]
[348936735,1736879443964,-1323.24667547,0.00021827,2]
[348936737,1736879443974,-500.0,0.00021914,2]
[348936739,1736879443984,-420.30299715,0.00021914,2]
[348936741,1736879443994,-500.0,0.00021914,2]
[348936743,1736879444003,-500.0,0.00021914,2]
[348936745,1736879444013,-500.0,0.00021914,2]
[348936747,1736879444023,-500.0,0.00021914,2]
[348936749,1736879444032,-500.0,0.00021914,2]
[348936751,1736879444043,-521.42355613,0.00021914,2]
[348936754,1736879444053,-500.0,0.00021914,2]
[348936756,1736879444064,-500.0,0.00021914,2]
[348936758,1736879444074,-500.0,0.00021914,2]
[348936760,1736879444084,-500.0,0.00021914,2]
[348936762,1736879444096,-500.0,0.00021914,2]
[348936764,1736879444106,-500.0,0.00021914,2]
[348936766,1736879444116,-500.0,0.00021914,2]
[348936768,1736879444125,-500.0,0.00021914,2]
[348936770,1736879444135,-500.0,0.00021914,2]
[348936772,1736879444145,-500.0,0.00021914,2]
[348936774,1736879444155,-546.85132828,0.00021914,2]
[348936776,1736879444166,-617.40223991,0.00021914,2]
[348936778,1736879444175,-500.0,0.00021914,2]
[348936780,1736879444184,-500.0,0.00021914,2]
[348936782,1736879444194,-500.0,0.00021914,2]
[348936784,1736879444203,-460.99874114,0.00021914,2]
[348936786,1736879444213,-508.69679542,0.00021914,2]
[348936788,1736879444223,-500.0,0.00021914,2]
[348936790,1736879444232,-500.0,0.00021914,2]
[348936793,1736879444243,-500.0,0.00021914,2]
[348936795,1736879444252,-500.0,0.00021914,2]
[348936797,1736879444261,-500.0,0.00021914,2]
[348936799,1736879444271,-500.0,0.00021914,2]
[348936800,1736879444281,-500.0,0.00021914,2]
[348936802,1736879444290,-500.0,0.00021914,2]
[348936804,1736879444301,-500.0,0.00021914,2]
[348936806,1736879444311,-500.0,0.00021914,2]
[348936808,1736879444320,-500.0,0.00021914,2]
[348936810,1736879444330,-500.0,0.00021914,2]
[348936813,1736879444341,-500.0,0.00021914,2]
[348936815,1736879444350,-500.0,0.00021914,2]
[348936817,1736879444360,-500.0,0.00021914,2]
[348936819,1736879444370,-500.0,0.00021914,2]
[348936821,1736879444380,-500.0,0.00021914,2]
[348936823,1736879444390,-462.10722107,0.00021916,2]
[348936825,1736879444400,-173.47505474,0.00021916,2]
[348936827,1736879444410,-500.0,0.00021916,2]
[348936829,1736879444420,-499.0,0.00021916,2]
[348936831,1736879444430,-645.37996038,0.00021917,3]
[348936833,1736879444439,-500.0,0.00021917,3]
[348936835,1736879444449,-500.0,0.00021917,3]
[348936837,1736879444459,-513.75504327,0.00021917,3]
[348936839,1736879444469,-500.0,0.00021917,3]
[348936841,1736879444478,-500.0,0.00021917,3]
[348936843,1736879444488,-517.54869856,0.00021917,3]
[348936845,1736879444499,-502.43909269,0.00021917,2]
[348936847,1736879444508,-500.0,0.00021917,3]
[348936849,1736879444518,-574.70583704,0.00021917,3]
[348936851,1736879444527,-500.0,0.00021917,3]
[348936853,1736879444538,-504.06361026,0.00021917,3]
[348936855,1736879444548,-500.0,0.00021917,3]
[348936857,1736879444558,-500.0,0.00021917,3]
[348936859,1736879444567,-500.0,0.00021917,3]
[348936861,1736879444577,-408.72560674,0.00021917,3]
[348936863,1736879444588,-500.0,0.00021917,3]
[348936865,1736879444601,-500.0,0.00021917,3]
[348936867,1736879444610,-698.01,0.00021917,3]
[348936869,1736879444620,-500.0,0.00021917,3]
[348936871,1736879444630,-500.0,0.00021917,3]
[348936874,1736879444644,-500.0,0.00021917,3]
[348936876,1736879444654,-500.0,0.00021917,3]
[348936878,1736879444665,-500.0,0.00021917,3]
[348936880,1736879444674,-500.0,0.00021917,3]
[348936882,1736879444686,-500.0,0.00021917,3]
[348936884,1736879444696,-500.0,0.00021917,3]
[348936886,1736879444706,-500.0,0.00021917,3]
[348936888,1736879444716,-500.0,0.00021917,3]
[348936890,1736879444725,-500.0,0.00021917,3]
[348936892,1736879444735,-500.0,0.00021917,3]
[348936894,1736879444745,-500.0,0.00021917,3]
[348936896,1736879444756,-500.0,0.00021917,3]
[348936898,1736879444765,-500.0,0.00021917,3]
[348936900,1736879444775,-500.0,0.00021917,3]
[348936902,1736879444785,-500.0,0.00021917,3]
[348936904,1736879444795,-205.41566002,0.00021917,3]
[348936906,1736879444806,-500.0,0.00021917,3]
[348936908,1736879444816,-522.22486881,0.00021917,3]
[348936910,1736879444826,-503.64374056,0.00021917,3]
[348936912,1736879444836,-500.0,0.00021917,3]
[348936914,1736879444846,-500.0,0.00021917,3]
[348936916,1736879444856,-500.0,0.00021917,3]
[348936918,1736879444866,-500.0,0.00021917,3]
[348936921,1736879444877,-500.0,0.00021917,3]
[348936923,1736879444887,-531.79616678,0.00021917,3]
[348936924,1736879444897,-503.06907034,0.00021917,3]
[348936927,1736879444907,-500.0,0.00021917,3]
[348936929,1736879444916,-504.42075287,0.00021917,3]
[348936931,1736879444926,-502.50016208,0.00021917,3]
[348936933,1736879444935,-500.0,0.00021917,3]
[348936935,1736879444944,-500.0,0.00021917,3]
[348936937,1736879444955,-500.0,0.00021917,3]
[348936939,1736879444965,-502.51579294,0.00021917,3]
[348936941,1736879444975,-503.12644779,0.00021917,3]
[348936943,1736879444984,-500.0,0.00021917,3]
[348936945,1736879444994,-502.64131757,0.00021917,3]
[348936947,1736879445004,-500.0,0.00021917,3]
[348936949,1736879445014,-500.0,0.00021917,3]
[348936951,1736879445023,-500.0,0.00021917,3]
[348936953,1736879445032,-500.0,0.00021917,3]
[348936955,1736879445042,-500.0,0.00021917,3]
[348936957,1736879445052,-500.0,0.00021917,3]
[348936959,1736879445061,-500.0,0.00021917,3]
[348936961,1736879445071,-502.94502829,0.00021917,3]
[348936963,1736879445081,-594.07145511,0.00021917,3]
[348936965,1736879445091,-500.0,0.00021917,3]
[348936967,1736879445101,-500.0,0.00021917,3]
[348936969,1736879445110,-500.0,0.00021917,3]
[348936971,1736879445120,-500.0,0.00021917,3]
[348936973,1736879445129,-500.0,0.00021917,3]
[348936974,1736879445138,-500.0,0.00021917,3]
[348936977,1736879445148,-500.0,0.00021917,3]
[348936979,1736879445157,-500.0,0.00021917,3]
[348936980,1736879445166,-500.0,0.00021917,3]
[348936982,1736879445176,-500.0,0.00021917,3]
[348936984,1736879445186,-500.0,0.00021917,3]
[348936986,1736879445195,-500.0,0.00021917,3]
[348936988,1736879445204,-500.0,0.00021917,3]
[348936990,1736879445214,-500.0,0.00021917,3]
[348936992,1736879445224,-500.0,0.00021917,3]
[348936994,1736879445233,-500.0,0.00021917,3]
[348936997,1736879445243,-500.0,0.00021917,3]
[348936999,1736879445252,-500.0,0.00021917,3]
[348937001,1736879445262,-500.0,0.00021917,3]
[348937003,1736879445271,-500.0,0.00021917,3]
[348937005,1736879445281,-500.0,0.00021917,3]
[348937007,1736879445292,-500.0,0.00021917,3]
[348937009,1736879445301,-511.32,0.00021917,3]
[348937011,1736879445311,-500.0,0.00021917,3]
[348937013,1736879445321,-500.0,0.00021917,3]
[348937015,1736879445330,-505.16,0.00021917,3]
[348937017,1736879445339,-547.61,0.00021917,3]
[348937019,1736879445349,-500.0,0.00021917,3]
[348937021,1736879445358,-500.0,0.00021917,3]
[348937023,1736879445368,-500.0,0.00021917,3]
[348937025,1736879445377,-500.0,0.00021917,3]
[348937027,1736879445387,-500.0,0.00021917,3]
[348937029,1736879445397,-500.0,0.00021917,3]
[348937031,1736879445407,-500.0,0.00021917,3]
[348937033,1736879445418,-500.0,0.00021917,3]
[348937035,1736879445428,-502.3459423,0.00021917,3]
[348937037,1736879445437,-500.0,0.00021917,3]
[348937039,1736879445447,-530.40897516,0.00021917,3]
[348937041,1736879445458,-368.43097209,0.00021917,3]
[348937044,1736879445468,-500.0,0.00021917,3]
[348937046,1736879445478,-500.0,0.00021917,3]
[348937048,1736879445487,-500.0,0.00021917,3]
[348937050,1736879445497,-500.0,0.00021917,3]
[348937052,1736879445507,-500.0,0.00021917,3]
[348937054,1736879445517,-500.0,0.00021917,3]
[348937056,1736879445527,-500.0,0.00021917,3]
[348937058,1736879445537,-500.0,0.00021917,3]
[348937060,1736879445547,-500.0,0.00021917,3]
[348937062,1736879445558,-500.0,0.00021917,3]
[348937064,1736879445568,-500.0,0.00021917,3]
[348937066,1736879445579,-500.0,0.00021917,3]
[348937068,1736879445588,-500.0,0.00021917,3]
[348937070,1736879445602,-500.0,0.00021917,3]
[348937072,1736879445612,-528.03426674,0.00021917,3]
[348937074,1736879445622,-500.0,0.00021917,3]
[348937076,1736879445631,-500.0,0.00021917,3]
[348937079,1736879445642,-500.0,0.00021917,3]
[348937080,1736879445653,-500.0,0.00021917,3]
[348937083,1736879445663,-500.0,0.00021917,3]
[348937085,1736879445674,-500.0,0.00021917,3]
[348937086,1736879445684,-500.0,0.00021917,3]
[348937089,1736879445694,-500.0,0.00021917,3]
[348937091,1736879445704,-500.0,0.00021917,3]
[348937093,1736879445713,-500.0,0.00021917,3]
[348937095,1736879445722,-500.0,0.00021917,3]
[348937097,1736879445732,-303.49367552,0.00021917,3]
[348937099,1736879445742,-421.41135891,0.00021917,3]
[348937101,1736879445752,-500.0,0.00021917,3]
[348937103,1736879445763,-500.0,0.00021917,3]
[348937105,1736879445773,-500.0,0.00021917,3]
[348937107,1736879445783,-500.0,0.00021917,3]
[348937109,1736879445792,-500.0,0.00021917,3]
[348937111,1736879445803,-500.0,0.00021917,3]
[348937113,1736879445813,-500.0,0.00021917,3]
[348937115,1736879445823,-500.0,0.00021917,3]
[348937117,1736879445833,-500.0,0.00021917,3]
[348937119,1736879445843,-500.0,0.00021917,3]
[348937121,1736879445852,-500.0,0.00021917,3]
[348937122,1736879445861,-500.0,0.00021917,3]
[348937124,1736879445871,-506.47532817,0.00021917,3]
[348937125,1736879445987,-501.74571841,0.00021917,3]
[348937126,1736879446012,-500.0,0.00021917,3]
[348937127,1736879446023,-500.0,0.00021917,3]
[348937128,1736879446033,-500.0,0.00021917,3]
[348937129,1736879446043,-500.0,0.00021917,3]
[348937130,1736879446054,-601.79834697,0.00021917,3]
[348937131,1736879446064,-500.0,0.00021917,3]
[348937132,1736879446073,-500.0,0.00021917,3]
[348937133,1736879446082,-500.0,0.00021917,3]
[348937134,1736879446092,-500.0,0.00021917,3]
[348937135,1736879446102,-500.0,0.00021917,3]
[348937137,1736879446111,-500.0,0.00021917,3]
[348937139,1736879446121,-500.0,0.00021917,3]
[348937141,1736879446132,-500.0,0.00021917,3]
[348937144,1736879446142,-591.12472566,0.00021917,3]
[348937147,1736879446152,-500.0,0.00021917,3]
[348937150,1736879446162,-500.0,0.00021917,3]
[348937153,1736879446172,-502.52728249,0.00021917,3]
[348937156,1736879446181,-419.60592858,0.00021917,3]
[348937213,1736879446843,-80.39407142,0.00021917,3]
[348937216,1736879446854,-300.82624067,0.00021917,3]
[348938142,1736880321877,289.498946,0.00013973,2]
[348938143,1736880445142,-322.59220314,0.00017831,2]
[348938145,1736880550100,-867.82659454,0.00017653,2]
[348938146,1736880550124,-1837.80779066,0.00017831,2]
[348938147,1736880556126,-318.26988349,0.00017831,2]
[348938148,1736880556151,-300.0,0.00018735,2]
[348938149,1736880556178,-7762.0,0.00018735,2]
[348938150,1736880556203,-427.89826115,0.00018737,2]
[348938151,1736880570128,-973.50579874,0.00018737,2]
[348938252,1736880632252,-300.0,0.00018736,2]
[348938255,1736880632264,-23498.59594011,0.00018737,2]
[348938257,1736880632280,-3242.47646302,0.000189,2]
[348938260,1736880632295,-622.901359,0.00019002,2]
[348938262,1736880632308,-1282.14819543,0.00019003,2]
[348938265,1736880632322,-276.4371515,0.00019021,2]
[348938267,1736880632337,-291.706,0.00019126,2]
[348938270,1736880632352,-250.0,0.00019149,2]
[348938272,1736880632367,-500.0,0.00019178,7]
[348938274,1736880632378,-168.3434991,0.00019178,2]
[348938276,1736880632389,-153.7,0.00019178,2]
[348938279,1736880632402,-2005.29973004,0.00019224,2]
[348938282,1736880632418,-551.384732,0.00019448,2]
[348938284,1736880632432,-187.45,0.00019802,2]
[348938286,1736880632445,-427.27532415,0.00019802,2]
[348938289,1736880632457,-500.0,0.00019863,9]
[348938291,1736880632470,-420.0,0.00020428,2]
[348938293,1736880632483,-289.498946,0.00020447,2]
[348938295,1736880632495,-169.742498,0.00020521,2]
[348938297,1736880632506,-416.90413778,0.00020547,11]
[348938300,1736880632518,-169.742498,0.00020603,2]
[348938302,1736880632533,-162.1301035,0.00020608,2]
[348938304,1736880632546,-445.022,0.00020608,2]
[348938307,1736880632559,-169.742498,0.00020685,2]
[348938310,1736880632572,-169.742498,0.00020767,2]
[348938313,1736880632584,-677.85205221,0.0002078,2]
[348938315,1736880632597,-190.53928266,0.000208,2]
[348938317,1736880632610,-7455.9823277,0.00020814,2]